[Event "AUT Bundesliga 2024-25"]
[Site "Austria"]
[Date "2025.04.04"]
[Round "8.1"]
[White "Parligras, Mircea-Emilian"]
[Black "Ragger, Markus"]
[Result "1/2-1/2"]
[Annotator "TA"]
[ECO "D47"]
[WhiteElo "2507"]
[BlackElo "2585"]
[PlyCount "61"]
[EventDate "2024.08.28"]
[EventType "team-tourn"]
[EventCountry "AUT"]
[SourceTitle "playchess.com"]
[Source "ChessBase"]
[SourceQuality "1"]
[TimeControl "40/5400+30:1800+30"]

{[%evp 22,61,24,11,25,3,15,0,0,0,0,0,0,0,0,0,0,-5,0,0,0,-5,0,0,24,24,22,18,23,29,20,15,15,16,16,15,12,17,20,16,21,13]} 1. d4 {[%emt 0:00:05]} d5 {[%emt 0:00:02]} 2. c4 {[%emt 0:00:20]} e6 {[%emt 0:00:01]} 3. Nf3 {[%emt 0:00:22]} Nf6 {[%emt 0:00:03]} 4. Nc3 {[%emt 0:00:21]} c6 {[%emt 0:00:03]} 5. e3 {[%emt 0:01:19]} Be7 {[%emt 0:00:32]} 6. Bd3 {[%emt 0:05:49]} dxc4 {[%emt 0:00:26]} 7. Bxc4 {[%emt 0:00:05]} b5 {[%emt 0:00:04]} 8. Bd3 {[%emt 0:00:23]} b4 {[%emt 0:00:15]} 9. Ne4 {[%emt 0:02:39]} Nbd7 {[%emt 0:00:10]} 10. O-O {[%emt 0:00:48]} Nxe4 {[%emt 0:01:23]} 11. Bxe4 {[%emt 0:00:08]} Bb7 {[%emt 0:00:03]} 12. b3 {[%emt 0:10:12]} O-O {[%emt 0:15:02] D47: Semi-Slav: Meran System.} 13. Bb2 {[%emt 0:00:24]} Nf6 {[%emt 0:11:18]} 14. Nd2 $146 {[%emt 0:09:34]} (14. Bd3 Rc8 15. Qe2 c5 16. dxc5 Rxc5 17. Rfd1 Qa8 18. a3 bxa3 19. Bxa3 Rc7 {½-½ Erdos,V (2610)-Gonda,L (2527) Budapest Spring op 2019 (7)}) 14... Nxe4 {[%emt 0:27:53]} 15. Nxe4 {[%emt 0:00:07]} c5 {[%emt 0:00:27]} 16. Nxc5 {[%emt 0:00:07]} Bxc5 {[%emt 0:00:03] Black sacrificed a pawn} 17. dxc5 {[%emt 0:00:07]} Qg5 {[%emt 0:00:07][%csl Gb7,LRc5,LRg2][%cal Rg5g2] [#] Repels Qg4} 18. e4 {[%emt 0:08:18]} Bxe4 {[%emt 0:06:20][%csl Ge4][%cal Rg5g2]} 19. f3 $132 {[%emt 0:00:08][%mdl 2048] White is fighting back} Rfd8 {[%emt 0:06:54]} (19... Qxc5+ $2 {is the wrong capture.} 20. Bd4 Qa5 21. fxe4 $18) 20. Qc1 {[%emt 0:02:09]} Qxc1 {[%emt 0:07:08]} ({Wrong is} 20... Rd2 $2 21. Rf2 (21. fxe4 $2 Qxg2#) 21... Rad8 22. fxe4 $18) 21. Raxc1 {[%emt 0:00:39]} Bc6 {[%emt 0:00:15]} 22. Rfd1 {[%emt 0:57:26] Inhibits Rd2.} Rd5 {[%emt 0:01:17]} 23. Rxd5 {[%emt 0:00:00]} exd5 $11 {[%emt 0:00:02][%mdl 4096] Endgame KRB-KRB} 24. Re1 {[%emt 0:00:00]} Re8 {[%emt 0:00:49]} 25. Rxe8+ {[%emt 0:00:00]} Bxe8 {[%emt 0:00:03] KB-KB} 26. Kf2 {[%emt 0:00:00] The position is equal.} f6 {[%emt 0:00:21]} 27. Ke3 {[%emt 0:00:00]} Kf7 {[%emt 0:00:01]} 28. Kd4 {[%emt 0:00:00]} Ke6 {[%emt 0:00:06]} 29. a3 {[%emt 0:00:00]} bxa3 {[%emt 0:02:55]} 30. Bxa3 {[%emt 0:00:00]} Bb5 {[%emt 0:00:15]} 31. Bc1 {[%emt 0:00:00] An even fight not without its subleties.   Weighted Error Value: White=0.05 (flawless) /Black=0.04 (flawless)   OK:         	White=7     	Black=10     Best:        	White=1     	Black=1} 1/2-1/2

[Event "AUT Bundesliga 2024-25"]
[Site "Austria"]
[Date "2025.04.04"]
[Round "8.2"]
[White "Costa, Leonardo"]
[Black "Kozul, Zdenko"]
[Result "1-0"]
[Annotator "TA"]
[ECO "B67"]
[WhiteElo "2510"]
[BlackElo "2507"]
[PlyCount "79"]
[EventDate "2024.08.28"]
[EventType "team-tourn"]
[EventCountry "AUT"]
[SourceTitle "playchess.com"]
[Source "ChessBase"]
[SourceQuality "1"]
[TimeControl "40/5400+30:1800+30"]

{[%evp 16,79,31,18,27,30,31,30,30,26,101,39,38,20,71,95,79,77,88,39,197,187,295,303,275,309,346,359,520,531,520,177,182,187,177,176,212,164,156,153,156,127,135,134,139,135,142,101,104,63,58,15,66,43,91,8,60,68,498,84,63,67,712,158,802,752]} 1. e4 {[%emt 0:00:02]} c5 {[%emt 0:00:08]} 2. Nf3 {[%emt 0:00:03]} d6 {[%emt 0:00:41]} 3. d4 {[%emt 0:00:04]} cxd4 {[%emt 0:00:05]} 4. Nxd4 {[%emt 0:00:03]} Nf6 {[%emt 0:00:09]} 5. Nc3 {[%emt 0:00:03]} Nc6 {[%emt 0:01:41]} 6. Bg5 {[%emt 0:00:08]} e6 {[%emt 0:00:10]} 7. Qd2 {[%emt 0:00:05]} a6 {[%emt 0:00:47]} 8. O-O-O {[%emt 0:00:06]} Bd7 {[%emt 0:00:07]} 9. Kb1 {[%emt 0:00:05]} Nxd4 {[%emt 0:07:43] B67: Sicilian: Richter-Rauzer: 7...a6 8 0-0-0 Bd7, lines without 9 f4 Be7.} 10. Qxd4 {[%emt 0:00:04]} Be7 {[%emt 0:00:07]} 11. f3 {[%emt 0:00:03]} O-O {[%emt 0:05:12][%cal Of6e4] White has an edge.} 12. h4 {[%emt 0:10:33][%cal Bh2h4,Bh4h5][%mdl 32]} h6 $146 {[%emt 0:10:43]} (12... b5 $11) (12... Bc6 13. Qd2 Rc8 14. Ne2 d5 15. e5 Nd7 16. Bxe7 Qxe7 17. f4 f6 18. exf6 Nxf6 19. Nd4 {½-½ Amonatov,F (2598)-Mosadeghpour,M (2480) UAE National Day 51st rapid 2022 (6)}) 13. Be3 {[%emt 0:06:02]} ({White should try} 13. g4 $16) 13... h5 $14 {[%emt 0:00:09][%cal Bh6h5,Bh5g4][%mdl 32]} 14. Bg5 {[%emt 0:04:31]} (14. Be2 $5) 14... Qc7 {[%emt 0:12:58]} (14... Bc6 $11) 15. g4 $1 $16 {[%emt 0:06:11]} hxg4 {[%emt 0:05:57]} 16. h5 $1 {[%emt 0:00:04]} e5 {[%emt 0:01:27]} (16... gxf3 $2 17. h6 e5 18. Qd3 $16) 17. Qf2 {[%emt 0:04:23]} (17. Qd3 $16) 17... Kh7 $2 {[%emt 0:08:44]} (17... Be6 $14) 18. f4 $18 {[%emt 0:22:26][%cal Bf3f4,Bf4e5][%mdl 32]} Bc6 {[%emt 0:10:18]} (18... Qd8 $142 19. fxe5 Nxe4 20. Nxe4 Bxg5) 19. fxe5 {[%emt 0:01:01]} Nxe4 {[%emt 0:00:41]} 20. Qf5+ {[%emt 0:01:23]} Kg8 {[%emt 0:03:45]} 21. Nxe4 {[%emt 0:00:21]} Bxe4 {[%emt 0:02:57]} (21... Qc8 {might work better.} 22. e6 (22. Nxd6 $2 Qxf5 23. Nxf5 Bxg5 $19) 22... fxe6 23. Qxg4 Bxe4 24. Qxe4 Bxg5) 22. Qxe4 {[%emt 0:00:03][%cal Of1d3] White wants to mate with Bd3!.} Bxg5 {[%emt 0:00:06]} 23. Bd3 $2 {[%emt 0:04:49]} (23. exd6 Qc6 24. Qxg4 Qxh1 $18) (23. Rxd6 Rae8 24. Bd3 (24. Qxg4 $2 Qxd6 25. Qxg5 Rxe5 $19) 24... f5 25. Qd5+ Kh8 $18) (23. Qf5) 23... f5 {[%emt 0:00:59]} 24. exf6 {[%emt 0:00:03] White attacks} gxf6 {[%emt 0:00:11] Black is weak on the light squares} 25. Qxg4 {[%emt 0:14:26]} Kh8 {[%emt 0:04:16]} 26. h6 {[%emt 0:00:18]} Rae8 {[%emt 0:04:12]} 27. a3 {[%emt 0:01:08]} Re5 {[%emt 0:00:32]} 28. Bc4 {[%emt 0:12:56]} Qe7 {[%emt 0:03:46]} 29. Bb3 {[%emt 0:00:40]} f5 {[%emt 0:08:31]} 30. Qf3 {[%emt 0:02:51]} f4 {[%emt 0:00:38]} 31. h7 {[%emt 0:00:02] White has more active pieces.} b5 {[%emt 0:02:28]} 32. Rh3 {[%emt 0:10:53]} a5 {[%emt 0:00:55]} 33. Qc6 {[%emt 0:00:23]} Rc5 {[%emt 0:04:52]} (33... Bf6 $11) 34. Qg2 {[%emt 0:00:25]} Qe5 {[%emt 0:00:22]} (34... Rcf5 $14) 35. Bd5 {[%emt 0:00:26]} (35. Rhd3 $16) 35... b4 {[%emt 0:00:15] Opposite bishops and equal position} (35... Rfc8 $1 $11 36. Be4 Re8) 36. a4 $14 {[%emt 0:00:40]} Rcc8 $2 {[%emt 0:01:25][%mdl 8192] [#]} ({Better is} 36... Rc7 $14) 37. Rh5 $2 $40 {[%emt 0:00:10][%mdl 128] White is out for blood.} (37. Rg1 $1 $18 Rf5 38. Be4) 37... Rf5 $16 {[%emt 0:00:19][%cal Of4f3] and ...f3! should not be overlooked} 38. Qg4 {[%emt 0:00:55] Strongly threatening Rxg5. The board is on fire.} Rcf8 $2 {[%emt 0:00:41][%mdl 8192]} (38... Bf6 39. Qg8+) (38... Rc5 $14 39. Bf3 Qf6) 39. Rd3 $2 {[%emt 0:00:26]} (39. Be6 $18 b3 40. Bxf5 Qxf5 41. Qxf5 (41. Qxg5 $2 {gets mated.} Qxc2+ 42. Ka1 Qxd1#) 41... Rxf5 42. cxb3 (42. Rxd6 Re5 $18)) 39... f3 $2 {[%emt 0:00:26] [#]} ({Not} 39... Bf6 40. Qg8+) (39... Rd8 $16 40. Bf7 d5 (40... Bf6 41. Qg8+)) 40. Rxf3 $1 {[%emt 0:00:42] Weighted Error Value: White=0.56/Black=0.65  Loses game:     	---       	Black=3      Missed win:     	White=2     	---        Mistake:       	White=4     	Black=8      Inaccurate:     	White=2     	---        OK:         	White=9     	Black=11     Best:        	White=2     	Black=2      Strong:       	White=2     	---} 1-0

[Event "AUT Bundesliga 2024-25"]
[Site "Austria"]
[Date "2025.04.04"]
[Round "8.4"]
[White "Handler, Lukas"]
[Black "Schnider, Gert"]
[Result "1/2-1/2"]
[Annotator "RC"]
[ECO "D38"]
[WhiteElo "2444"]
[BlackElo "2368"]
[PlyCount "60"]
[EventDate "2024.08.28"]
[EventType "team-tourn"]
[EventCountry "AUT"]
[SourceTitle "playchess.com"]
[Source "ChessBase"]
[SourceQuality "1"]
[TimeControl "40/5400+30:1800+30"]

1. d4 {[%emt 0:00:04]} Nf6 {[%emt 0:00:05]} 2. c4 {[%emt 0:00:05]} e6 {[%emt 0:00:03]} 3. Nf3 {[%emt 0:00:06]} d5 {[%emt 0:00:04]} 4. Nc3 {[%emt 0:00:11]} Bb4 {[%emt 0:00:10]} 5. cxd5 {[%emt 0:01:14]} exd5 {[%emt 0:00:10]} 6. Bg5 {[%emt 0:00:15]} h6 {[%emt 0:01:25]} 7. Bxf6 {[%emt 0:03:24]} Qxf6 {[%emt 0:00:09]} 8. Qa4+ {[%emt 0:00:34]} Nc6 {[%emt 0:00:07]} 9. e3 {[%emt 0:01:05]} O-O {[%emt 0:01:02]} 10. Bd3 {[%emt 0:05:06]} Bf5 {[%emt 0:08:59]} 11. Bxf5 {[%emt 0:07:15]} Qxf5 {[%emt 0:00:06]} 12. O-O {[%emt 0:00:09]} Qe6 {[%emt 0:25:29]} 13. Rfc1 {[%emt 0:05:25]} a6 {[%emt 0:05:20]} 14. Qb3 {[%emt 0:08:06]} Rfd8 {[%emt 0:00:27]} 15. Na4 {[%emt 0:07:30]} Rab8 {[%emt 0:08:19]} 16. Nc5 {[%emt 0:04:48]} Qd6 {[%emt 0:14:22]} 17. a3 {[%emt 0:10:51]} Bxc5 {[%emt 0:00:29]} 18. Rxc5 {[%emt 0:00:09]} Ne7 {[%emt 0:00:31]} 19. Qc2 {[%emt 0:01:07]} c6 {[%emt 0:01:38]} 20. b4 {[%emt 0:00:46]} Nc8 {[%emt 0:03:32]} 21. Nd2 {[%emt 0:06:45]} Qf6 {[%emt 0:04:32]} 22. a4 {[%emt 0:06:53]} Nd6 {[%emt 0:00:09]} 23. Qd1 {[%emt 0:04:41]} Re8 {[%emt 0:02:54]} 24. Rc2 {[%emt 0:02:26]} Re7 {[%emt 0:01:33]} 25. Nf3 {[%emt 0:02:40]} Rbe8 {[%emt 0:03:07]} 26. Ne5 {[%emt 0:03:03]} Qg5 {[%emt 0:01:58]} 27. Qf3 {[%emt 0:03:50]} Re6 {[%emt 0:01:35]} 28. g3 {[%emt 0:01:10]} Rf6 {[%emt 0:01:56]} 29. Qe2 {[%emt 0:02:16]} Qf5 {[%emt 0:00:13]} 30. Rd1 {[%emt 0:01:13]} Rfe6 {[%emt 0:02:31]} 1/2-1/2

[Event "AUT Bundesliga 2024-25"]
[Site "Austria"]
[Date "2025.04.04"]
[Round "8.5"]
[White "Fahrner, Kurt"]
[Black "Bauer, Sebastian"]
[Result "0-1"]
[Annotator "RC"]
[ECO "C50"]
[WhiteElo "2266"]
[BlackElo "2312"]
[PlyCount "90"]
[EventDate "2024.08.28"]
[EventType "team-tourn"]
[EventCountry "AUT"]
[SourceTitle "playchess.com"]
[Source "ChessBase"]
[SourceQuality "1"]
[TimeControl "40/5400+30:1800+30"]

1. e4 {[%emt 0:00:02]} e5 {[%emt 0:00:10]} 2. Nf3 {[%emt 0:00:05]} Nc6 {[%emt 0:00:07]} 3. Nc3 {[%emt 0:00:04]} Nf6 {[%emt 0:00:32]} 4. Bc4 {[%emt 0:00:10]} Bc5 {[%emt 0:07:21]} 5. d3 {[%emt 0:00:20]} h6 {[%emt 0:07:28]} 6. Nd5 {[%emt 0:18:58]} d6 {[%emt 0:03:00]} 7. c3 {[%emt 0:01:14]} a5 {[%emt 0:08:37]} 8. a4 {[%emt 0:22:43]} Ba7 {[%emt 0:12:26]} 9. Be3 {[%emt 0:06:52]} Nxd5 {[%emt 0:05:58]} 10. Bxd5 {[%emt 0:00:20]} Bxe3 {[%emt 0:01:55]} 11. fxe3 {[%emt 0:00:04]} Ne7 {[%emt 0:05:04]} 12. Bb3 {[%emt 0:03:28]} Ng6 {[%emt 0:02:14]} 13. O-O {[%emt 0:00:15]} O-O {[%emt 0:00:23]} 14. Qe1 {[%emt 0:17:35]} c6 {[%emt 0:09:41]} 15. Qg3 {[%emt 0:01:17]} Kh7 {[%emt 0:01:39]} 16. h4 {[%emt 0:05:32]} Qb6 {[%emt 0:08:51]} 17. Nd2 {[%emt 0:07:01]} Nf4 {[%emt 0:06:14]} 18. Qf3 {[%emt 0:11:22]} Nxd3 {[%emt 0:05:58]} 19. Bxf7 {[%emt 0:00:09]} Nf4 {[%emt 0:02:18]} 20. Bb3 {[%emt 0:02:19]} Nh3+ {[%emt 0:01:15]} 21. gxh3 {[%emt 0:00:23]} Rxf3 {[%emt 0:00:05]} 22. Rxf3 {[%emt 0:00:06]} Bd7 {[%emt 0:03:21]} 23. Raf1 {[%emt 0:01:03]} Re8 {[%emt 0:00:15]} 24. Kh2 {[%emt 0:00:23]} Be6 {[%emt 0:00:16]} 25. Bxe6 {[%emt 0:00:41]} Rxe6 {[%emt 0:00:01]} 26. b3 {[%emt 0:00:15]} Qc5 {[%emt 0:01:06]} 27. c4 {[%emt 0:00:24]} Qb4 {[%emt 0:00:19]} 28. R1f2 {[%emt 0:00:14]} Rf6 {[%emt 0:00:20]} 29. Rxf6 {[%emt 0:00:43]} gxf6 {[%emt 0:00:01]} 30. Kg3 {[%emt 0:00:30]} Qc3 {[%emt 0:00:48]} 31. Kf3 {[%emt 0:00:04]} Qc1 {[%emt 0:00:29]} 32. Ke2 {[%emt 0:00:17]} Kg7 {[%emt 0:01:05]} 33. Rf1 {[%emt 0:00:41]} Qc2 {[%emt 0:00:31]} 34. h5 {[%emt 0:00:14]} Kf7 {[%emt 0:00:31]} 35. Rg1 {[%emt 0:00:35]} d5 {[%emt 0:00:58]} 36. cxd5 {[%emt 0:01:30]} cxd5 {[%emt 0:00:02]} 37. exd5 {[%emt 0:00:28]} e4 {[%emt 0:00:01]} 38. Rg6 {[%emt 0:00:37]} Qd3+ {[%emt 0:00:08]} 39. Kd1 {[%emt 0:00:06]} Qxe3 {[%emt 0:00:22]} 40. Rg4 {[%emt 0:00:54]} f5 {[%emt 0:00:19]} 41. Rg2 {[%emt 0:05:08]} Qd3 {[%emt 0:01:41]} 42. Ke1 {[%emt 0:02:22]} Qxh3 {[%emt 0:06:05]} 43. Re2 {[%emt 0:01:11]} e3 {[%emt 0:01:27]} 44. d6 {[%emt 0:00:28]} exd2+ {[%emt 0:01:33]} 45. Rxd2 {[%emt 0:00:50]} Ke8 {[%emt 0:00:11]} 0-1

[Event "AUT Bundesliga 2024-25"]
[Site "Austria"]
[Date "2025.04.04"]
[Round "8.6"]
[White "Hartl, Daniel"]
[Black "Krebs, Johann"]
[Result "1/2-1/2"]
[Annotator "RC"]
[ECO "E62"]
[WhiteElo "2271"]
[BlackElo "2231"]
[PlyCount "63"]
[EventDate "2024.08.28"]
[EventType "team-tourn"]
[EventCountry "AUT"]
[SourceTitle "playchess.com"]
[Source "ChessBase"]
[SourceQuality "1"]
[TimeControl "40/5400+30:1800+30"]

1. d4 {[%emt 0:00:03]} Nf6 {[%emt 0:00:13]} 2. c4 {[%emt 0:00:05]} g6 {[%emt 0:00:07]} 3. g3 {[%emt 0:00:04]} Bg7 {[%emt 0:00:16]} 4. Bg2 {[%emt 0:00:06]} O-O {[%emt 0:00:15]} 5. Nc3 {[%emt 0:00:05]} d6 {[%emt 0:00:21]} 6. Nf3 {[%emt 0:00:07]} c6 {[%emt 0:00:11]} 7. O-O {[%emt 0:00:06]} Bf5 {[%emt 0:00:42]} 8. Ne1 {[%emt 0:00:21]} d5 {[%emt 0:01:25]} 9. cxd5 {[%emt 0:26:49]} cxd5 {[%emt 0:02:35]} 10. Qb3 {[%emt 0:00:16]} Qb6 {[%emt 0:07:31]} 11. Qxb6 {[%emt 0:00:24]} axb6 {[%emt 0:00:03]} 12. Nxd5 {[%emt 0:00:08]} Nxd5 {[%emt 0:03:00]} 13. Bxd5 {[%emt 0:00:18]} Nc6 {[%emt 0:00:26]} 14. e3 {[%emt 0:10:14]} Rfd8 {[%emt 0:08:18]} 15. Bg2 {[%emt 0:00:58]} Na5 {[%emt 0:08:04]} 16. e4 {[%emt 0:13:32]} Bd7 {[%emt 0:05:35]} 17. Nf3 {[%emt 0:01:17]} Nb3 {[%emt 0:08:55]} 18. Rb1 {[%emt 0:00:12]} Rxa2 {[%emt 0:00:23]} 19. Rd1 {[%emt 0:05:47]} Bb5 {[%emt 0:25:56]} 20. Bf1 {[%emt 0:00:10]} Nxd4 {[%emt 0:06:48]} 21. Nxd4 {[%emt 0:05:07]} Bxf1 {[%emt 0:00:35]} 22. Kxf1 {[%emt 0:00:28]} Rxd4 {[%emt 0:02:14]} 23. Be3 {[%emt 0:00:22]} Rxd1+ {[%emt 0:03:37]} 24. Rxd1 {[%emt 0:00:09]} Bxb2 {[%emt 0:00:16]} 25. Rd7 {[%emt 0:01:21]} e6 {[%emt 0:08:54]} 26. Rxb7 {[%emt 0:01:11]} h5 {[%emt 0:00:49]} 27. Rxb6 {[%emt 0:00:58]} Bf6 {[%emt 0:00:18]} 28. h4 {[%emt 0:05:08]} Ra4 {[%emt 0:00:20]} 29. f3 {[%emt 0:00:06]} Ra2 {[%emt 0:00:10]} 30. Rb3 {[%emt 0:02:13]} Be5 {[%emt 0:02:02]} 31. f4 {[%emt 0:01:36]} Bf6 {[%emt 0:00:35]} 32. e5 {[%emt 0:02:05]} 1/2-1/2

[Event "AUT Bundesliga 2024-25"]
[Site "Austria"]
[Date "2025.04.04"]
[Round "8.7"]
[White "Horvath, Dominik"]
[Black "Nguyen, Thai Dai Van"]
[Result "0-1"]
[Annotator "TA"]
[ECO "B15"]
[WhiteElo "2543"]
[BlackElo "2668"]
[PlyCount "90"]
[EventDate "2024.08.28"]
[EventType "team-tourn"]
[EventCountry "AUT"]
[SourceTitle "playchess.com"]
[Source "ChessBase"]
[SourceQuality "1"]
[TimeControl "40/5400+30:1800+30"]

{[%evp 15,90,29,49,26,20,16,14,-12,6,-39,-44,-42,-25,-33,-40,-36,-42,-25,-8,-51,-55,-40,-39,-45,-50,-86,-70,-88,-96,-147,-156,-137,-119,-108,-116,-112,-112,-108,-114,-113,-106,-125,-117,-160,-169,-139,-115,-154,-155,-252,-241,-325,-301,-285,-289,-462,-235,-252,-276,-222,-261,-262,-260,-439,-449,-605,-592,-956,-979,-981,-967,-891,-903,-1651,-1547,-1593,-1570]} 1. e4 {[%emt 0:00:03]} c6 {[%emt 0:00:14]} 2. d4 {[%emt 0:00:31]} d5 {[%emt 0:00:28]} 3. Nd2 {[%emt 0:12:20]} dxe4 {[%emt 0:00:09]} 4. Nxe4 {[%emt 0:00:04]} Nf6 {[%emt 0:00:07]} 5. Nxf6+ {[%emt 0:00:03]} exf6 {[%emt 0:00:08]} 6. c3 {[%emt 0:00:03]} Bd6 {[%emt 0:00:09]} 7. Bd3 {[%emt 0:00:05]} O-O {[%emt 0:00:07]} 8. Qc2 {[%emt 0:00:02]} g6 {[%emt 0:01:23]} 9. h4 {[%emt 0:01:22] B15: Caro-Kann: 3 Nc3: 3...g6 and 3...dxe4 4 Nxe4 Nf6 5 Nxf6+ exf6.} h5 {[%emt 0:04:25]} 10. Be3 $146 {[%emt 0:03:39]} (10. Ne2 Kg7 11. Bd2 Qc7 12. O-O-O b5 13. f3 Be6 14. Rdg1 Nd7 15. g4 hxg4 16. fxg4 Bd5 {0-1 Sychev,K (2563)-Fedoseev,V (2677) Wch Blitz Moscow 2019 (14)}) 10... Kg7 {[%emt 0:00:17]} 11. Nf3 {[%emt 0:05:03] The position is equal.} Re8 {[%emt 0:01:13]} 12. O-O-O {[%emt 0:00:53]} Na6 {[%emt 0:03:54][%cal Bb8a6,Ba6c7,Bc7d5][%mdl 32]} 13. Kb1 {[%emt 0:11:16]} Be6 {[%emt 0:09:12]} 14. Nd2 {[%emt 0:06:23] A sharp opening} Nc7 {[%emt 0:03:57]} 15. Ne4 {[%emt 0:05:30]} Nd5 {[%emt 0:00:17]} 16. Bc1 {[%emt 0:07:35]} a5 {[%emt 0:21:03]} 17. g3 {[%emt 0:09:09]} b5 {[%emt 0:03:01]} 18. Qd2 {[%emt 0:01:11]} Rh8 {[%emt 0:02:57] Active counter play!} 19. f3 {[%emt 0:02:34]} a4 {[%emt 0:03:29]} 20. Rdg1 {[%emt 0:02:48]} Be7 {[%emt 0:09:57]} 21. g4 {[%emt 0:01:15]} Nb6 {[%emt 0:04:27]} 22. gxh5 {[%emt 0:07:42] [#]} (22. Nc5 $142 Bxc5 23. dxc5) 22... Qd5 $1 $17 {[%emt 0:02:40] Dancing on a razor blade.} (22... Rxh5 $6 23. Ng3 Rh8 24. Nf5+ Kf8 25. Nxe7 Kxe7 26. Be4 $15) 23. Kc2 {[%emt 0:00:10]} (23. h6+ Kh7 24. c4 bxc4 $17 (24... Qxd4 $2 25. Ng5+ Kg8 26. Nxe6 $18)) 23... Qxa2 {[%emt 0:14:26][%csl Ga2,Ga4][%cal Re6b3]} 24. Kd1 {[%emt 0:00:03] Hoping for hxg6.} Rxh5 $40 {[%emt 0:00:42][%mdl 128] Black wants a kill.} 25. Ng3 {[%emt 0:00:04] [#]} Rah8 {[%emt 0:01:48]} 26. Nxh5+ {[%emt 0:00:13]} Rxh5 {[%emt 0:00:02]} 27. Qe2 {[%emt 0:05:52]} Kf8 {[%emt 0:09:18]} 28. Ke1 {[%emt 0:03:18]} c5 {[%emt 0:00:47]} 29. Kf2 {[%emt 0:01:39]} cxd4 {[%emt 0:00:10]} 30. cxd4 {[%emt 0:00:05][%cal Og1g6] [#]} Qd5 $1 {[%emt 0:02:39]} 31. Qe4 {[%emt 0:04:00]} Qd7 {[%emt 0:00:40][%mdl 1024] Black has strong compensation.} 32. Qf4 {[%emt 0:00:08]} (32. Be2 $17) 32... Kg7 $19 {[%emt 0:00:48]} 33. Be2 {[%emt 0:04:15]} Nd5 {[%emt 0:00:31]} 34. Qd2 {[%emt 0:00:02]} f5 {[%emt 0:01:26][%cal Of5f4]} 35. Qd3 {[%emt 0:02:46]} (35. f4 {was called for.} Rxh4 (35... Bxh4+ 36. Kg2 $17) 36. Rxh4 Bxh4+ 37. Kg2) 35... b4 {[%emt 0:00:13]} (35... Rxh4 $2 36. Qxb5 Qa7 (36... Rxd4 37. Qxd7 Bxd7 38. Rd1 $11) 37. Rxh4 Bxh4+ 38. Kg2 $19) (35... Bxh4+ $142 36. Rxh4 Rxh4 37. Qxb5 Qd8 (37... Rxd4 $2 38. Bh6+ Kxh6 39. Qb8 $17)) 36. Bg5 {[%emt 0:00:18]} f4 {[%emt 0:00:43]} 37. Bxe7 {[%emt 0:01:11]} Qxe7 {[%emt 0:00:10]} (37... Nxe7 38. Rg5 $17) 38. Qe4 {[%emt 0:00:59]} a3 {[%emt 0:00:01]} (38... Rxh4 39. Qe5+ Kf8 (39... f6 40. Qe4 $16) 40. Bc4 Rxh1 41. Rxh1 $11) 39. bxa3 {[%emt 0:00:13]} (39. Bc4) 39... bxa3 {[%emt 0:00:07][%cal Oa3a2] Black is clearly winning.} (39... Rxh4 $2 {loses.} 40. Qe5+ Kf8 (40... f6 $2 41. Qe4 $18) 41. Bc4 Rxh1 42. Rxh1 $18) 40. Bc4 {[%emt 0:03:27][%cal Og1g5]} Qb4 {[%emt 0:01:31]} 41. Rc1 {[%emt 0:06:55]} Qd2+ {[%emt 0:09:38]} 42. Be2 {[%emt 0:00:21]} a2 {[%emt 0:00:34][%cal Oh5h4] White must now prevent ...Rxh4!.} 43. Rc2 {[%emt 0:05:01]} Qa5 {[%emt 0:01:18]} 44. Ra1 {[%emt 0:03:18]} Qd8 {[%emt 0:01:20]} ({Weaker is} 44... Rxh4 45. Qe5+ Kh7 46. Rcxa2 $15) 45. Ke1 {[%emt 0:00:05]} Bf5 {[%emt 0:00:42] Weighted Error Value: White=0.46/Black=0.10 (very precise)   Mistake:       	White=4     	Black=1      Inaccurate:     	White=9     	---        OK:         	White=10    	Black=16     Best:        	White=5     	Black=3      Strong:       	---       	Black=1} 0-1